bitfinex-derivatives/quotes_SOLF0:USTF0_20250507
["timestamp","ask_amount","ask_price","bid_price","bid_amount"]
[1746614416317,6.768,147.76,147.74,6.7687]
[1746614416513,6.768,147.76,147.74,11.39184789]
[1746614416713,6.7685,147.75,147.73,6.7692]
[1746614416914,8.66434789,147.8,147.73,11.39234789]
[1746614417225,6.7684,147.76,147.73,11.39234789]
[1746614417420,8.66434789,147.8,147.73,11.39234789]
[1746614417923,6.7687,147.75,147.73,11.39234789]
[1746614418423,6.7687,147.75,147.73,6.7692]
[1746614418626,6.7689,147.74,147.73,4.62314789]
[1746614418920,11.19194661,147.74,147.73,4.62314789]
[1746614420727,11.19194661,147.74,147.72,36.6898]
[1746614421024,11.19194661,147.74,147.73,4.62314789]
[1746614421226,4.42304661,147.74,147.73,11.39254789]
[1746614422126,11.19194661,147.74,147.73,4.62314789]
[1746614424525,4.42304661,147.74,147.73,11.39254789]
[1746614429834,4.42304661,147.74,147.73,6.7694]
[1746614430133,4.42304661,147.74,147.73,11.39254789]
[1746614430831,4.42304661,147.74,147.72,29.92]
[1746614431535,11.19214661,147.74,147.72,29.92]
[1746614431834,4.42304661,147.73,147.72,29.92]
[1746614435145,4.42304661,147.73,147.72,36.6899]
[1746614436841,11.19244661,147.73,147.72,29.92]
[1746614438347,4.42304661,147.73,147.72,29.92]
[1746614440046,4.42304661,147.73,147.72,36.6899]
[1746614447555,6.7687,147.75,147.72,36.6899]
[1746614447556,6.7682,147.76,147.74,6.7686]
[1746614447852,6.7682,147.76,147.74,11.39174789]
[1746614448655,6.7682,147.76,147.75,29.84]
[1746614449152,6.7677,147.77,147.75,36.6085]
[1746614449454,8.66434789,147.8,147.75,36.6085]
[1746614449654,6.7675,147.78,147.75,36.6085]
[1746614449853,8.66434789,147.8,147.75,36.6085]
[1746614450956,6.7676,147.77,147.75,36.6085]
[1746614457668,6.7673,147.78,147.76,6.768]
[1746614458061,6.7673,147.78,147.75,29.84]
[1746614458062,4.62314789,147.82,147.77,4.62314789]
[1746614458266,6.7666,147.8,147.77,11.39044789]
[1746614458468,4.62314789,147.84,147.77,6.7673]
[1746614458667,10.57714789,147.84,147.77,11.39044789]
[1746614458866,6.7666,147.8,147.77,11.39044789]
[1746614459067,10.57714789,147.84,147.77,11.39044789]
[1746614459964,4.35733013,147.83,147.77,11.39044789]
[1746614460367,4.62314789,147.82,147.76,6.7679]
[1746614460768,6.7671,147.79,147.76,6.7679]
[1746614460966,4.35733013,147.78,147.76,6.7679]
[1746614461570,4.35733013,147.77,147.76,6.7679]
[1746614480983,4.35733013,147.77,147.75,41.23144789]
[1746614481182,4.35733013,147.76,147.75,41.23144789]
[1746614486378,4.35733013,147.76,147.75,36.6083]
[1746614486580,4.35733013,147.76,147.75,41.23144789]
[1746614487083,4.35733013,147.76,147.75,36.6083]
[1746614487274,4.35733013,147.76,147.75,41.23144789]
[1746614488186,4.35733013,147.76,147.75,34.46314789]
[1746614489389,4.35733013,147.76,147.75,29.84]
[1746614489586,4.35733013,147.76,147.75,34.46314789]
[1746614489989,4.35733013,147.76,147.75,41.23164789]
[1746614492889,4.35733013,147.76,147.75,36.6085]
[1746614493091,6.769,147.74,147.71,614.48]
[1746614493690,11.12673013,147.73,147.71,614.48]
[1746614493889,4.35733013,147.73,147.71,614.48]
[1746614494087,4.35733013,147.72,147.71,614.48]
[1746614496390,4.35733013,147.72,147.71,621.2503]
[1746614496892,4.35733013,147.72,147.71,614.48]
[1746614498893,11.12723013,147.72,147.71,614.48]
[1746614499287,4.35733013,147.72,147.71,614.48]
[1746614502394,4.35733013,147.72,147.71,621.2503]
[1746614503892,6.7683,147.76,147.73,6.7693]
[1746614504189,6.7683,147.76,147.74,4.62022384]
[1746614504394,6.7683,147.76,147.75,30.7]
[1746614506799,4.62022384,147.81,147.75,30.7]
[1746614507599,6.768,147.76,147.75,30.7]
[1746614516004,11.08075327,147.76,147.75,30.7]
[1746614524617,4.31275327,147.76,147.75,30.7]
[1746614525515,4.31275327,147.76,147.75,37.4685]
[1746614528023,4.31275327,147.76,147.75,30.7]
[1746614530026,11.08075327,147.76,147.75,30.7]
[1746614530322,4.31275327,147.76,147.75,30.7]
[1746614531030,11.08075327,147.76,147.75,30.7]
[1746614542029,4.31275327,147.76,147.75,37.4685]
[1746614542235,13.5311,147.82,147.75,42.08872384]
[1746614542534,6.7665,147.8,147.77,11.38752384]
[1746614542730,4.62022384,147.85,147.77,11.38752384]
[1746614543234,6.7664,147.8,147.77,11.38752384]
[1746614543933,4.31375686,147.79,147.77,11.38752384]
[1746614544235,4.31375686,147.79,147.78,6.7671]
[1746614545030,6.7659,147.81,147.78,6.7671]
[1746614545230,6.7659,147.81,147.79,34.80022384]
[1746614545538,6.7659,147.81,147.79,41.56662384]
[1746614545736,30.18,147.89,147.79,34.80022384]
[1746614545926,4.62022384,147.87,147.81,4.62022384]
[1746614546735,6.7653,147.82,147.81,4.62022384]
[1746614550840,6.765,147.83,147.81,4.62022384]
[1746614551240,4.62022384,147.87,147.81,4.62022384]
[1746614551440,6.7651,147.83,147.81,4.62022384]
[1746614553243,6.7646,147.84,147.81,4.62022384]
[1746614553444,4.62022384,147.87,147.81,4.62022384]
[1746614553842,6.7646,147.84,147.81,11.38572384]
[1746614555144,6.7648,147.83,147.81,4.62022384]
[1746614556944,6.7648,147.83,147.81,11.38592384]
[1746614557136,6.7648,147.83,147.81,6.7657]
[1746614557343,6.7648,147.83,147.81,11.38592384]
[1746614557643,4.62022384,147.85,147.79,34.80022384]
[1746614558142,4.62022384,147.85,147.79,41.56682384]
[1746614558442,4.62022384,147.85,147.79,34.80022384]
[1746614558845,6.7658,147.81,147.79,34.80022384]
[1746614561644,6.7662,147.8,147.79,34.80022384]
[1746614563149,6.766,147.81,147.79,34.80022384]
[1746614563446,4.62022384,147.85,147.79,34.80022384]
[1746614565445,6.7662,147.81,147.79,34.80022384]
[1746614567252,4.28400247,147.8,147.79,34.80022384]
[1746614568156,6.7662,147.81,147.79,34.80022384]
[1746614568353,6.7662,147.8,147.79,34.80022384]
[1746614569453,11.05574889,147.8,147.79,34.80022384]
[1746614583562,4.28954889,147.8,147.79,41.56682384]
[1746614585061,6.766,147.81,147.79,41.56682384]
[1746614585360,6.766,147.81,147.8,6.7662]
[1746614585665,6.7655,147.82,147.8,6.7662]
[1746614585960,4.30593298,147.81,147.8,6.7662]
[1746614586658,11.07163298,147.81,147.79,41.56662384]
[1746614587155,4.30593298,147.8,147.79,41.56662384]
[1746614589269,2.1149,147.88,147.81,6.7653]
[1746614589457,2.1149,147.88,147.81,4.62022384]
[1746614590962,6.7646,147.84,147.82,6.7652]
[1746614591167,6.7646,147.84,147.83,29.78]
[1746614595765,2.1149,147.88,147.83,34.40022384]
[1746614596262,6.764,147.85,147.83,34.40022384]
[1746614600471,6.764,147.85,147.83,41.16502384]
[1746614600965,6.764,147.85,147.83,29.78]
[1746614601164,6.764,147.85,147.83,34.40022384]
[1746614601370,4.39101908,147.84,147.83,34.40022384]
[1746614602271,11.15541908,147.84,147.83,29.78]
[1746614602472,4.39101908,147.84,147.83,34.40022384]
[1746614605373,4.39101908,147.84,147.83,41.16502384]
[1746614612170,4.39101908,147.84,147.83,29.78]
[1746614612572,11.15541908,147.84,147.83,29.78]
[1746614617775,11.15541908,147.84,147.83,34.40022384]
[1746614619370,11.15541908,147.84,147.83,29.78]
[1746614623478,11.15541908,147.84,147.83,34.40022384]
[1746614643398,11.15541908,147.84,147.83,29.78]
[1746614665314,4.39101908,147.84,147.83,34.40022384]
[1746614667013,11.15541908,147.84,147.83,34.40022384]
[1746614668513,4.39101908,147.84,147.83,34.40022384]
[1746614671313,4.39101908,147.84,147.83,41.16502384]
[1746614673519,4.39101908,147.84,147.83,34.40022384]
[1746614673715,4.39101908,147.84,147.83,29.78]
[1746614676117,6.7641,147.85,147.83,29.78]
[1746614676415,4.38737755,147.84,147.83,29.78]
[1746614677114,11.15177755,147.84,147.83,29.78]
[1746614682624,4.38737755,147.84,147.83,34.40022384]
[1746614687025,4.38737755,147.84,147.83,41.16502384]
[1746614699633,4.37577091,147.84,147.83,41.16502384]
[1746614701836,4.37577091,147.84,147.83,36.5448]
[1746614702031,4.37577091,147.84,147.83,41.16502384]
[1746614704140,4.37577091,147.84,147.83,36.5448]
[1746614704340,4.37577091,147.84,147.83,41.16502384]
[1746614709542,4.37577091,147.84,147.83,36.5448]
[1746614709740,4.37577091,147.84,147.83,29.78]
[1746614709948,4.37577091,147.84,147.83,34.40022384]
[1746614712550,4.37577091,147.84,147.83,41.16502384]
[1746614713051,4.37577091,147.84,147.83,34.40022384]
[1746614716251,11.14017091,147.84,147.83,29.78]
[1746614716455,4.37577091,147.84,147.78,584.42]
[1746614716649,4.37577091,147.84,147.8,4.62022384]
[1746614716849,6.7657,147.81,147.8,4.62022384]
[1746614717051,11.14147091,147.81,147.8,4.62022384]
[1746614717855,4.37577091,147.81,147.8,34.26022384]
[1746614718350,4.37577091,147.81,147.8,29.64]
[1746614718959,4.37577091,147.81,147.79,11.38682384]
[1746614719152,4.37577091,147.81,147.8,29.64]
[1746614720455,11.14147091,147.81,147.8,29.64]
[1746614723358,4.37577091,147.81,147.8,29.64]
[1746614723654,4.37577091,147.81,147.8,34.26022384]
[1746614724455,4.37577091,147.81,147.8,41.02642384]
[1746614724851,4.37577091,147.81,147.8,34.26022384]
[1746614726459,4.37577091,147.81,147.8,41.02642384]
[1746614739867,4.37577091,147.81,147.8,36.4062]
[1746614740067,4.37577091,147.81,147.8,41.02642384]
[1746614748571,4.37577091,147.81,147.8,36.4062]
[1746614748776,4.37577091,147.81,147.8,41.02642384]
[1746614754183,4.37577091,147.81,147.8,36.4062]
[1746614754486,4.37577091,147.81,147.8,41.02642384]
[1746614763190,4.37577091,147.81,147.8,34.26022384]
[1746614763686,11.14147091,147.81,147.8,29.64]
[1746614768988,6.7657,147.81,147.8,29.64]
[1746614769191,11.15807752,147.81,147.8,29.64]
[1746614769892,6.7668,147.79,147.77,4.62022384]
[1746614770089,6.7668,147.79,147.78,29.6]
[1746614770494,4.39237752,147.79,147.78,29.6]
[1746614770687,4.39237752,147.79,147.78,34.22022384]
[1746614770995,4.1375,147.86,147.78,34.22022384]
[1746614771203,4.1375,147.86,147.81,4.62022384]
[1746614771204,6.7648,147.83,147.81,4.62022384]
[1746614771395,6.7648,147.83,147.82,29.6]
[1746614772997,6.7663,147.8,147.79,29.6]
[1746614779897,6.7676,147.77,147.76,673.95472823]
[1746614780097,6.7676,147.77,147.76,669.33450439]
[1746614780298,6.7676,147.77,147.76,614.12]
[1746614780505,4.62022384,147.79,147.73,29.56]
[1746614781599,6.7685,147.76,147.73,29.56]
[1746614781900,4.62022384,147.79,147.73,29.56]
[1746614782102,6.7687,147.75,147.73,29.56]
[1746614783406,4.32530252,147.74,147.73,29.56]
[1746614783701,4.32530252,147.74,147.73,36.3294]
[1746614784998,8.81712384,147.81,147.76,6.7679]
[1746614785199,2.1864,147.81,147.76,4.62022384]
[1746614785407,6.63662384,147.85,147.8,4.62022384]
[1746614785703,4.62022384,147.85,147.8,34.18022384]
[1746614786206,6.7652,147.83,147.8,34.18022384]
[1746614786411,4.62022384,147.85,147.8,34.18022384]
[1746614786703,6.7653,147.82,147.8,34.18022384]
[1746614787707,6.7653,147.82,147.8,29.56]
[1746614789611,6.7657,147.81,147.8,29.56]
[1746614790611,6.7655,147.82,147.8,29.56]
[1746614795015,6.7657,147.81,147.8,29.56]
[1746614801516,6.7657,147.81,147.8,24.48455961]
[1746614801718,6.7657,147.81,147.8,16.02549228]
[1746614810126,29.52,147.84,147.76,29.52]
[1746614810423,4.1734,147.83,147.76,29.52]
[1746614811526,4.1734,147.83,147.76,24.44387252]
[1746614811723,4.61706725,147.81,147.76,24.44387252]
[1746614812132,6.7676,147.77,147.76,24.44387252]
[1746614812524,6.7685,147.75,147.74,584.68]
[1746614812724,6.7685,147.75,147.74,29.52]
[1746614812924,11.14702676,147.75,147.74,29.52]
[1746614816128,6.7703,147.72,147.71,29.54]
[1746614816318,11.14882676,147.72,147.71,29.54]
[1746614822733,11.14882676,147.72,147.69,13.98802345]
[1746614822930,11.14882676,147.72,147.7,29.54]
[1746614825840,4.37852676,147.71,147.7,29.54]
[1746614827835,11.14882676,147.71,147.7,29.54]
[1746614830837,6.7703,147.71,147.7,29.54]
[1746614831038,11.14021183,147.71,147.7,29.54]
[1746614834642,6.7714,147.69,147.67,584.64]
[1746614834838,6.7714,147.69,147.68,29.54]
[1746614835238,11.14131183,147.69,147.68,29.54]
[1746614836739,4.36991183,147.69,147.68,29.54]
[1746614839149,4.36991183,147.69,147.68,36.3117]
[1746614839348,4.36991183,147.69,147.68,29.54]
[1746614839750,4.36991183,147.69,147.67,591.4118]
[1746614840051,6.7709,147.7,147.68,29.5]
[1746614840549,4.36397893,147.69,147.68,29.5]
[1746614841654,4.36397893,147.69,147.67,591.4118]
[1746614841844,4.36397893,147.69,147.68,29.5]
[1746614842750,4.36397893,147.69,147.68,36.2717]
[1746614847747,4.36397893,147.69,147.68,40.89288965]
[1746614849850,4.2876,147.76,147.7,6.7703]
[1746614850051,4.2876,147.76,147.7,11.39148965]
[1746614850253,6.7697,147.73,147.7,11.39148965]
[1746614850554,4.2876,147.76,147.7,11.39148965]
[1746614850850,6.7699,147.72,147.7,11.39148965]
[1746614851051,6.7699,147.72,147.68,36.09638965]
[1746614851455,6.7699,147.72,147.69,6.7708]
[1746614851954,6.7696,147.73,147.7,6.7705]
[1746614852254,4.2876,147.76,147.7,6.7705]
[1746614852650,6.7697,147.73,147.7,6.7705]
[1746614852849,4.2876,147.76,147.7,6.7705]
[1746614854149,6.7696,147.73,147.7,6.7705]
[1746614858058,6.7699,147.72,147.69,6.771]
[1746614861360,6.7704,147.71,147.69,6.771]
[1746614861860,4.32534107,147.7,147.69,6.771]
[1746614873775,4.32534107,147.7,147.69,11.3908183]
[1746614875473,4.32534107,147.7,147.69,6.771]
[1746614875677,4.32534107,147.7,147.69,11.3908183]
[1746614880085,4.32534107,147.7,147.69,6.771]
[1746614880579,4.32534107,147.7,147.69,11.3908183]
[1746614882488,4.6198183,147.79,147.69,4.6198183]
[1746614882783,2.0885,147.8,147.76,4.6198183]
[1746614882976,2.0885,147.8,147.77,29.46]
[1746614883382,4.6198183,147.83,147.77,29.46]
[1746614883685,4.6198183,147.83,147.78,4.6198183]
[1746614884186,6.7665,147.8,147.78,4.6198183]
[1746614885389,6.7666,147.79,147.78,4.6198183]
[1746614885690,6.7666,147.79,147.77,29.46]
[1746614890089,2.1014,147.84,147.77,29.46]
[1746614890090,6.7671,147.78,147.77,29.46]
[1746614898991,6.7692,147.74,147.73,29.4]
[1746614899393,6.7692,147.74,147.73,26.1167]
[1746614899593,6.771,147.7,147.66,2.1087]
[1746614899792,6.771,147.7,147.67,29.4]
[1746614900193,6.7702,147.72,147.67,29.4]
[1746614900391,2.1713,147.76,147.68,6.7716]
[1746614901097,2.1713,147.76,147.69,6.771]
[1746614901396,2.033,147.79,147.68,7.21276216]
[1746614902095,6.7689,147.75,147.71,6.7699]
[1746614902291,6.7689,147.75,147.72,29.4]
[1746614903195,6.769,147.74,147.72,29.4]
[1746614904098,6.7688,147.75,147.72,36.1698]
[1746614904398,6.7688,147.75,147.72,29.4]
[1746614904596,6.7691,147.74,147.72,29.4]
[1746614907196,6.7687,147.75,147.72,36.1698]
[1746614907793,6.7683,147.76,147.73,6.7693]
[1746614907993,2.033,147.79,147.72,29.4]
[1746614908398,6.7681,147.76,147.73,6.7692]
[1746614910904,6.7678,147.77,147.74,6.7688]
[1746614911097,6.7678,147.77,147.72,29.4]
[1746614911596,6.7678,147.77,147.74,6.7687]
[1746614912603,6.768,147.76,147.74,6.7687]
[1746614913003,1.9711,147.8,147.74,6.7687]
[1746614913202,6.7678,147.77,147.74,6.7687]
[1746614915607,6.7678,147.77,147.75,6.7685]
[1746614916101,30.1879,147.81,147.76,6.7678]
[1746614916302,2.0552,147.83,147.76,36.1678]
[1746614916498,2.0552,147.83,147.76,29.4]
[1746614916806,6.7675,147.78,147.76,29.4]
[1746614917007,2.0552,147.83,147.76,29.4]
[1746614917407,6.767,147.79,147.76,36.1677]
[1746614917802,6.7676,147.77,147.76,29.4]
[1746614918203,2.0552,147.83,147.73,29.4]
[1746614918505,7.21276216,147.81,147.73,29.4]
[1746614918707,2.0952,147.8,147.73,29.4]
[1746614919411,6.7687,147.75,147.73,29.4]
[1746614922107,6.768,147.77,147.73,29.4]
[1746614922308,6.768,147.77,147.73,36.1693]
[1746614923003,6.7681,147.76,147.73,36.1693]
[1746614924809,6.7681,147.76,147.74,6.7689]
[1746614925011,6.7678,147.77,147.74,6.7689]
[1746614930908,6.7681,147.76,147.74,6.7689]
[1746614931116,6.7681,147.76,147.73,36.1692]
[1746614933616,6.7678,147.77,147.74,6.7689]
[1746614937717,6.7678,147.77,147.74,11.38659694]
[1746614939517,4.61769694,147.8,147.74,4.61769694]
[1746614939719,6.67289694,147.83,147.76,4.61769694]
[1746614940217,6.67289694,147.83,147.77,6.7672]
[1746614940718,6.7664,147.8,147.77,6.7672]
[1746614942211,6.7666,147.79,147.76,6.7678]
[1746614944419,6.7664,147.8,147.77,6.7674]
[1746614946618,6.7668,147.79,147.76,6.7678]
[1746614948616,2.0552,147.83,147.74,4.142]
[1746614948820,7.2138948,147.86,147.75,7.2138948]
[1746614949518,6.7653,147.83,147.79,6.7663]
[1746614949719,6.7653,147.83,147.79,36.1063]
[1746614951330,6.7656,147.82,147.79,36.1063]
[1746614952524,7.2138948,147.8,147.74,2.147]
[1746614952823,7.2138948,147.81,147.7,2.0961]
[1746614953025,39.5938948,147.81,147.7,4.1916]
[1746614954123,32.38,147.81,147.7,4.1916]
[1746614954627,6.7683,147.76,147.7,10.9622]
[1746614954927,32.38,147.81,147.7,4.1916]
[1746614955225,6.7688,147.75,147.7,4.1916]
[1746614956132,6.7688,147.75,147.7,10.9623]
[1746614957629,6.7691,147.74,147.7,10.9623]
[1746614958230,6.7696,147.73,147.7,4.1916]
[1746614958535,39.5938948,147.81,147.7,4.1916]
[1746614958735,2.0023,147.8,147.7,4.1916]
[1746614960035,6.7693,147.74,147.7,4.1916]
[1746614962739,11.19810342,147.73,147.7,4.1916]
[1746614963437,6.7691,147.74,147.7,10.9622]
[1746614964241,6.7694,147.73,147.7,10.9622]
[1746614964641,9.2161948,147.8,147.71,6.7703]
[1746614965541,6.7687,147.75,147.71,6.7703]
[1746614966444,9.2161948,147.8,147.71,6.7703]
[1746614966941,6.7688,147.75,147.71,6.7703]
[1746614967342,4.42854295,147.74,147.71,6.7703]
[1746614967743,4.42854295,147.74,147.72,32.4]
[1746614967941,4.42854295,147.73,147.72,32.4]
[1746614968239,6.7688,147.75,147.72,32.4]
[1746614968542,4.42815942,147.74,147.72,32.4]
[1746614969037,6.7688,147.75,147.72,32.4]
[1746614972146,6.7689,147.74,147.72,32.4]
[1746614972345,9.2161948,147.8,147.72,39.1697]
[1746614973845,4.42519892,147.79,147.72,39.1697]
[1746614974351,6.7688,147.75,147.72,39.1697]
[1746614975049,6.769,147.74,147.72,32.4]
[1746614976547,6.7687,147.75,147.72,39.1698]
[1746614977156,6.7689,147.74,147.72,39.1698]
[1746614977342,6.7689,147.74,147.72,32.4]
[1746614977649,4.42526266,147.73,147.72,32.4]
[1746614978248,6.7689,147.74,147.72,32.4]
[1746614980145,4.42517891,147.73,147.72,32.4]
[1746614980849,6.7689,147.74,147.72,32.4]
[1746614983955,4.42267871,147.73,147.72,32.4]
[1746614984554,6.7689,147.74,147.72,32.4]
[1746614985357,6.7694,147.73,147.72,32.4]
[1746614986353,6.7692,147.74,147.72,32.4]
[1746614988759,6.7692,147.74,147.72,39.1698]
[1746614989160,6.7692,147.74,147.72,32.4]
[1746614991760,6.7692,147.74,147.73,31.54]
[1746614994865,11.1877923,147.74,147.73,31.54]
[1746614995463,6.7692,147.74,147.73,31.54]
[1746614996364,11.18806511,147.74,147.73,31.54]
[1746614996862,6.7692,147.74,147.73,31.54]
[1746614997864,11.1880413,147.74,147.73,31.54]
[1746614998062,6.7692,147.74,147.73,31.54]
[1746614999066,11.18803956,147.74,147.73,31.54]
[1746614999567,6.7692,147.74,147.73,31.54]
[1746615000371,4.61874526,147.8,147.73,36.15874526]
[1746615000566,4.41992459,147.79,147.76,4.61874526]
[1746615000865,4.41992459,147.79,147.78,4.61874526]
[1746615001170,4.61874526,147.84,147.78,36.17874526]
[1746615001561,4.41975282,147.83,147.78,36.17874526]
[1746615001970,4.61874526,147.84,147.78,36.17874526]
[1746615002277,6.7664,147.8,147.78,36.17874526]
[1746615002570,4.61874526,147.84,147.78,36.17874526]
[1746615003370,6.766,147.81,147.78,42.94554526]
[1746615003571,6.766,147.81,147.78,36.17874526]
[1746615003773,6.766,147.81,147.78,31.56]
[1746615007173,6.7662,147.8,147.78,31.56]
[1746615008379,6.766,147.81,147.78,31.56]
[1746615008577,33.6097,147.86,147.78,31.56]
[1746615008977,2.0497,147.86,147.78,31.56]
[1746615009177,6.7655,147.82,147.79,6.7666]
[1746615010080,6.765,147.83,147.8,6.7661]
[1746615010281,2.1817,147.88,147.78,38.77077581]
[1746615010481,2.0967,147.9,147.79,2.1433]
[1746615010873,6.7642,147.85,147.81,6.7654]
[1746615011080,6.7642,147.85,147.82,31.54]
[1746615011280,6.7644,147.84,147.82,31.54]
[1746615013581,6.7641,147.85,147.82,38.3053]
[1746615013982,2.0967,147.9,147.82,38.3053]
[1746615015089,6.7643,147.85,147.82,38.3053]
[1746615016392,6.7644,147.84,147.82,31.54]
[1746615017091,4.3820369,147.83,147.82,31.54]
[1746615017791,6.7644,147.84,147.82,31.54]
[1746615018893,6.7644,147.84,147.82,38.3053]
[1746615019490,31.54,147.92,147.82,31.54]
[1746615019694,12.06507581,147.97,147.84,7.21077581]
[1746615019893,12.06507581,147.97,147.85,2.1345]
[1746615020095,6.7615,147.91,147.87,6.7627]
[1746615020394,4.34976755,147.96,147.86,30.9]
[1746615020588,6.7614,147.91,147.87,6.7628]
[1746615020893,7.21077581,147.95,147.86,30.9]
[1746615021193,4.34923221,147.94,147.86,30.9]
[1746615021486,35.24923221,147.94,147.86,30.9]
[1746615021692,7.21077581,147.92,147.86,30.9]
[1746615021882,6.763,147.87,147.86,30.9]
[1746615022282,11.11223221,147.87,147.86,30.9]
[1746615022896,6.763,147.87,147.86,30.9]
[1746615023494,11.09487924,147.87,147.86,30.9]
[1746615024496,6.7642,147.85,147.83,30.9]
[1746615026996,6.7644,147.84,147.83,30.9]
[1746615027496,6.7643,147.85,147.83,30.9]
[1746615029992,6.7636,147.86,147.83,37.6648]
[1746615030199,4.1165,147.91,147.83,30.9]
[1746615030399,6.7628,147.88,147.83,30.9]
[1746615030601,4.33402355,147.87,147.83,30.9]
[1746615031003,4.33402355,147.86,147.84,6.764]
[1746615032398,11.09782355,147.86,147.83,30.9]
[1746615032700,4.33402355,147.85,147.83,30.9]
[1746615033308,6.7638,147.86,147.83,37.6646]
[1746615034102,6.7639,147.85,147.83,37.6646]
[1746615034603,4.33894133,147.84,147.83,37.6646]
[1746615037303,4.33894133,147.84,147.83,30.9]
[1746615038104,11.10334133,147.84,147.83,30.9]
[1746615042206,4.33894133,147.84,147.83,37.6648]
[1746615043605,1.05674133,147.84,147.83,37.6648]
[1746615043807,4.1165,147.91,147.85,6.7637]
[1746615044006,6.7633,147.87,147.85,6.7637]
[1746615044205,4.1165,147.91,147.84,6.7641]
[1746615044708,6.7632,147.87,147.84,6.7641]
[1746615045798,2.1377,147.91,147.83,38.11077581]
[1746615046101,2.1162,147.92,147.84,2.017]
[1746615046299,6.7623,147.89,147.86,6.763]
[1746615046501,6.7623,147.89,147.87,30.34]
[1746615046703,6.7618,147.9,147.87,37.1029]
[1746615046900,2.1162,147.92,147.87,30.34]
[1746615047209,6.7619,147.9,147.87,30.34]
[1746615047408,2.1162,147.92,147.87,30.34]
[1746615047911,6.7624,147.89,147.87,30.34]
[1746615048813,6.7619,147.9,147.87,30.34]
[1746615049006,6.7619,147.9,147.87,37.1029]
[1746615049206,6.7619,147.9,147.87,30.34]
[1746615049613,2.1162,147.92,147.87,30.34]
[1746615050410,6.7618,147.9,147.87,37.103]
[1746615050712,2.1162,147.92,147.87,30.34]
[1746615050917,6.7621,147.9,147.87,30.34]
[1746615051719,6.7621,147.9,147.87,37.1029]
[1746615052116,2.0949,147.95,147.87,30.34]
[1746615052311,2.0949,147.95,147.89,6.762]
[1746615052507,2.0949,147.95,147.87,30.34]
[1746615052816,6.761,147.92,147.89,6.762]
[1746615053713,6.7605,147.93,147.9,6.7616]
[1746615053917,2.0949,147.95,147.87,30.34]
[1746615055017,6.7609,147.92,147.89,6.7618]
[1746615056016,4.29751033,147.91,147.89,6.7618]
[1746615056218,4.29751033,147.91,147.9,6.7616]
[1746615056619,4.29751033,147.91,147.87,32.4599]
[1746615056820,4.29751033,147.9,147.89,6.7618]
[1746615064330,11.05911033,147.9,147.89,6.7618]
[1746615065029,6.7621,147.89,147.87,30.34]
[1746615065228,4.29751033,147.88,147.87,30.34]
[1746615066925,4.29751033,147.88,147.87,37.103]
[1746615067229,4.29751033,147.88,147.87,30.34]
[1746615067622,4.29751033,147.88,147.87,37.103]
[1746615071425,4.29751033,147.88,147.87,30.34]
[1746615071825,4.29751033,147.88,147.87,34.94970937]
[1746615072431,4.29751033,147.88,147.87,41.71270937]
[1746615072625,11.06001033,147.88,147.87,34.94970937]
[1746615073732,4.29751033,147.88,147.87,41.71270937]
[1746615074937,4.29751033,147.88,147.87,34.94970937]
[1746615077538,4.29751033,147.88,147.87,41.71270937]
[1746615077834,4.29751033,147.88,147.87,34.94970937]
[1746615080440,4.29751033,147.88,147.87,41.71270937]
[1746615082842,4.29751033,147.88,147.87,34.94970937]
[1746615084241,4.29751033,147.88,147.87,41.71270937]
[1746615085452,4.29751033,147.88,147.87,34.94970937]
[1746615086445,11.06001033,147.88,147.87,34.94970937]
[1746615086646,4.29751033,147.88,147.87,34.94970937]
[1746615087742,11.06001033,147.88,147.87,30.34]
[1746615087943,4.29751033,147.88,147.84,614.26]
[1746615088447,4.29751033,147.88,147.84,29.92]